[Event "Titled Tuesday Blitz February 14 Early 2023"]
[White "Acor, Corey"]
[Black "Kaidanov, Gregory"]
[WhiteFideId "2024861"]
[BlackFideId "2008564"]
[WhiteElo "2216"]
[BlackElo "2559"]
[Result "1-0"]
[Round "04"]
[TimeControl "180+2"]
[Date "2023.02.15"]
[WhiteClock "0:00:37"]
[BlackClock "0:00:51"]

1. e4 {[%clk 0:02:58]}  e5 {[%clk 0:02:59]} 2. Nc3 {[%clk 0:02:56]}  Nf6 {[%clk 0:02:58]} 3. g3 {[%clk 0:02:56]}  c6 {[%clk 0:02:57]} 4. Bg2 {[%clk 0:02:55]}  d5 {[%clk 0:02:57]} 5. d3 {[%clk 0:02:41]}  dxe4 {[%clk 0:02:57]} 6. dxe4 {[%clk 0:02:35]}  Qxd1+ {[%clk 0:02:56]} 7. Nxd1 {[%clk 0:02:35]}  Na6 {[%clk 0:02:53]} 8. a3 {[%clk 0:02:20]}  Nc5 {[%clk 0:02:49]} 9. Nc3 {[%clk 0:02:18]}  h6 {[%clk 0:02:44]} 10. Nge2 {[%clk 0:02:15]}  Be7 {[%clk 0:02:40]} 11. h3 {[%clk 0:02:09]}  O-O {[%clk 0:02:39]} 12. O-O {[%clk 0:02:08]}  a5 {[%clk 0:02:35]} 13. Be3 {[%clk 0:02:03]}  Be6 {[%clk 0:02:33]} 14. Rfe1 {[%clk 0:01:52]}  Bc4 {[%clk 0:02:29]} 15. f4 {[%clk 0:01:51]}  exf4 {[%clk 0:02:25]} 16. Nxf4 {[%clk 0:01:50]}  Rfe8 {[%clk 0:02:16]} 17. b3 {[%clk 0:01:26]}  Ba6 {[%clk 0:02:13]} 18. e5 {[%clk 0:01:22]}  Nfd7 {[%clk 0:02:10]} 19. Bf2 {[%clk 0:01:15]}  Bf8 {[%clk 0:02:08]} 20. Rad1 {[%clk 0:01:11]}  Nxe5 {[%clk 0:01:59]} 21. b4 {[%clk 0:01:04]}  axb4 {[%clk 0:01:58]} 22. axb4 {[%clk 0:01:05]}  Ncd7 {[%clk 0:01:58]} 23. b5 {[%clk 0:01:01]}  cxb5 {[%clk 0:01:55]} 24. Ncd5 {[%clk 0:00:59]}  Rac8 {[%clk 0:01:52]} 25. Rd2 {[%clk 0:00:55]}  Nc4 {[%clk 0:01:46]} 26. Rde2 {[%clk 0:00:44]}  Rxe2 {[%clk 0:01:46]} 27. Rxe2 {[%clk 0:00:45]}  Nde5 {[%clk 0:01:38]} 28. Nd3 {[%clk 0:00:43]}  Bd6 {[%clk 0:01:18]} 29. Nxe5 {[%clk 0:00:41]}  Nxe5 {[%clk 0:01:15]} 30. Rxe5 {[%clk 0:00:42]}  Kf8 {[%clk 0:01:00]} 31. Re2 {[%clk 0:00:38]}  b4 {[%clk 0:01:00]} 32. Rd2 {[%clk 0:00:38]}  Bc4 {[%clk 0:00:51]} 33. Nb6 {[%clk 0:00:37]} 1-0


[Site "https://www.chess.com"]

[Event "Titled Tuesday Blitz February 14 Early 2023"]
[White "Orozbaev, Eldiar"]
[Black "Lucassen, Mickey"]
[WhiteFideId "13802240"]
[BlackFideId "12919110"]
[WhiteElo "2235"]
[BlackElo "2023"]
[Result "1-0"]
[Round "04"]
[TimeControl "180+2"]
[Date "2023.02.15"]
[WhiteClock "0:01:18"]
[BlackClock "0:00:16"]

1. e4 {[%clk 0:03:00]}  c5 {[%clk 0:02:59]} 2. c3 {[%clk 0:03:01]}  d5 {[%clk 0:02:57]} 3. exd5 {[%clk 0:03:02]}  Qxd5 {[%clk 0:02:58]} 4. d4 {[%clk 0:03:01]}  Nc6 {[%clk 0:02:59]} 5. Nf3 {[%clk 0:03:01]}  Bf5 {[%clk 0:02:59]} 6. Be3 {[%clk 0:02:59]}  Bxb1 {[%clk 0:02:54]} 7. Rxb1 {[%clk 0:02:54]}  cxd4 {[%clk 0:02:54]} 8. Nxd4 {[%clk 0:02:53]}  e6 {[%clk 0:02:52]} 9. Nxc6 {[%clk 0:02:50]}  Qxc6 {[%clk 0:02:51]} 10. Be2 {[%clk 0:02:43]}  Nf6 {[%clk 0:02:44]} 11. Bf3 {[%clk 0:02:42]}  Qa6 {[%clk 0:02:45]} 12. Qb3 {[%clk 0:02:37]}  O-O-O {[%clk 0:02:29]} 13. a4 {[%clk 0:02:19]}  Kb8 {[%clk 0:02:19]} 14. Qb5 {[%clk 0:02:14]}  Qxb5 {[%clk 0:02:08]} 15. axb5 {[%clk 0:02:15]}  b6 {[%clk 0:02:07]} 16. Ke2 {[%clk 0:02:07]}  Be7 {[%clk 0:01:59]} 17. Rhd1 {[%clk 0:02:00]}  Bd6 {[%clk 0:01:42]} 18. c4 {[%clk 0:01:47]}  Be5 {[%clk 0:01:30]} 19. b4 {[%clk 0:01:46]}  Rxd1 {[%clk 0:01:29]} 20. Rxd1 {[%clk 0:01:47]}  Bc3 {[%clk 0:01:10]} 21. c5 {[%clk 0:01:38]}  Bxb4 {[%clk 0:01:05]} 22. cxb6 {[%clk 0:01:38]}  axb6 {[%clk 0:01:05]} 23. Bf4+ {[%clk 0:01:37]}  Ka7 {[%clk 0:00:59]} 24. Ra1+ {[%clk 0:01:33]}  Ba5 {[%clk 0:00:59]} 25. Rc1 {[%clk 0:01:34]}  Nd5 {[%clk 0:00:42]} 26. Bxd5 {[%clk 0:01:33]}  exd5 {[%clk 0:00:42]} 27. Rc7+ {[%clk 0:01:34]}  Ka8 {[%clk 0:00:43]} 28. Rxf7 {[%clk 0:01:34]}  Re8+ {[%clk 0:00:39]} 29. Kd3 {[%clk 0:01:34]}  Re4 {[%clk 0:00:37]} 30. Be3 {[%clk 0:01:31]}  Rb4 {[%clk 0:00:27]} 31. Rxg7 {[%clk 0:01:28]}  Rxb5 {[%clk 0:00:27]} 32. Rxh7 {[%clk 0:01:29]}  Rb1 {[%clk 0:00:25]} 33. Rd7 {[%clk 0:01:27]}  b5 {[%clk 0:00:19]} 34. Rxd5 {[%clk 0:01:25]}  Kb7 {[%clk 0:00:20]} 35. Ke4 {[%clk 0:01:24]}  Kc6 {[%clk 0:00:20]} 36. Rc5+ {[%clk 0:01:24]}  Kb7 {[%clk 0:00:19]} 37. h4 {[%clk 0:01:24]}  Bb6 {[%clk 0:00:19]} 38. Re5 {[%clk 0:01:24]}  Rb4+ {[%clk 0:00:18]} 39. Kf3 {[%clk 0:01:19]}  Bc7 {[%clk 0:00:15]} 40. Re7 {[%clk 0:01:18]}  Rxh4 {[%clk 0:00:14]} 41. g3 {[%clk 0:01:18]}  Rc4 {[%clk 0:00:13]} 42. Bf4 {[%clk 0:01:17]}  Kc8 {[%clk 0:00:14]} 43. Rxc7+ {[%clk 0:01:17]}  Rxc7 {[%clk 0:00:14]} 44. Bxc7 {[%clk 0:01:17]}  Kxc7 {[%clk 0:00:15]} 45. Ke3 {[%clk 0:01:18]}  Kd6 {[%clk 0:00:16]} 46. Kd3 {[%clk 0:01:19]}  Kd5 {[%clk 0:00:14]} 47. Kc3 {[%clk 0:01:19]}  Ke4 {[%clk 0:00:15]} 48. Kb4 {[%clk 0:01:17]}  Kf3 {[%clk 0:00:15]} 49. Kxb5 {[%clk 0:01:17]}  Kxf2 {[%clk 0:00:16]} 50. g4 {[%clk 0:01:18]} 1-0


[Site "https://www.chess.com"]

[Event "Titled Tuesday Blitz February 14 Early 2023"]
[White "Oro, Faustino"]
[Black "Mamedov, Edgar"]
[WhiteFideId "20000197"]
[BlackFideId "13739980"]
[WhiteElo "2269"]
[BlackElo "2193"]
[Result "0-1"]
[Round "04"]
[TimeControl "180+2"]
[Date "2023.02.15"]
[WhiteClock "0:00:22"]
[BlackClock "0:00:18"]

1. e4 {[%clk 0:03:00]}  c6 {[%clk 0:02:59]} 2. d4 {[%clk 0:03:01]}  d5 {[%clk 0:02:59]} 3. e5 {[%clk 0:03:01]}  c5 {[%clk 0:02:57]} 4. dxc5 {[%clk 0:03:01]}  Nc6 {[%clk 0:02:52]} 5. Nf3 {[%clk 0:03:01]}  e6 {[%clk 0:02:52]} 6. Be3 {[%clk 0:03:00]}  Nh6 {[%clk 0:02:50]} 7. c3 {[%clk 0:02:57]}  Nf5 {[%clk 0:02:49]} 8. Bd4 {[%clk 0:02:57]}  Bd7 {[%clk 0:02:49]} 9. Bd3 {[%clk 0:02:57]}  Nfxd4 {[%clk 0:02:48]} 10. cxd4 {[%clk 0:02:57]}  b6 {[%clk 0:02:48]} 11. O-O {[%clk 0:02:26]}  bxc5 {[%clk 0:02:47]} 12. dxc5 {[%clk 0:02:26]}  Bxc5 {[%clk 0:02:47]} 13. Nbd2 {[%clk 0:02:27]}  O-O {[%clk 0:02:46]} 14. Rc1 {[%clk 0:02:27]}  Be7 {[%clk 0:02:45]} 15. Nb3 {[%clk 0:02:13]}  Rb8 {[%clk 0:02:40]} 16. Qe2 {[%clk 0:02:10]}  Nb4 {[%clk 0:02:37]} 17. Bb1 {[%clk 0:02:09]}  Bb5 {[%clk 0:02:36]} 18. Qd2 {[%clk 0:02:05]}  Bxf1 {[%clk 0:02:36]} 19. Rxf1 {[%clk 0:02:05]}  Qb6 {[%clk 0:02:28]} 20. Nbd4 {[%clk 0:02:01]}  g6 {[%clk 0:02:17]} 21. Qh6 {[%clk 0:01:51]}  Nc6 {[%clk 0:02:15]} 22. Ne2 {[%clk 0:01:51]}  Qxb2 {[%clk 0:02:11]} 23. Nf4 {[%clk 0:01:25]}  Qxb1 {[%clk 0:01:45]} 24. h3 {[%clk 0:01:11]}  Qe4 {[%clk 0:01:26]} 25. Kh2 {[%clk 0:01:00]}  g5 {[%clk 0:00:45]} 26. g3 {[%clk 0:00:35]}  gxf4 {[%clk 0:00:28]} 27. gxf4 {[%clk 0:00:32]}  Kh8 {[%clk 0:00:20]} 28. Ng5 {[%clk 0:00:23]}  Bxg5 {[%clk 0:00:19]} 29. Qxg5 {[%clk 0:00:23]}  Qg6 {[%clk 0:00:18]} 30. Qh4 {[%clk 0:00:22]}  Rg8 {[%clk 0:00:18]} 0-1


[Site "https://www.chess.com"]

[Event "Titled Tuesday Blitz February 14 Early 2023"]
[White "Jeet, Jain"]
[Black "Kukhmazov, Arsen"]
[WhiteFideId "5073022"]
[BlackFideId "24108260"]
[WhiteElo "2199"]
[BlackElo "2512"]
[Result "0-1"]
[Round "04"]
[TimeControl "180+2"]
[Date "2023.02.15"]
[WhiteClock "0:00:11"]
[BlackClock "0:00:14"]

1. Nf3 {[%clk 0:03:00]}  d5 {[%clk 0:02:50]} 2. g3 {[%clk 0:02:59]}  c6 {[%clk 0:02:50]} 3. Bg2 {[%clk 0:02:58]}  Bf5 {[%clk 0:02:51]} 4. O-O {[%clk 0:02:58]}  e6 {[%clk 0:02:51]} 5. d4 {[%clk 0:02:58]}  Nf6 {[%clk 0:02:51]} 6. Nbd2 {[%clk 0:02:58]}  h6 {[%clk 0:02:51]} 7. Re1 {[%clk 0:02:58]}  Nbd7 {[%clk 0:02:50]} 8. Nh4 {[%clk 0:02:57]}  Bh7 {[%clk 0:02:50]} 9. e4 {[%clk 0:02:57]}  dxe4 {[%clk 0:02:51]} 10. Nxe4 {[%clk 0:02:58]}  Be7 {[%clk 0:02:51]} 11. Nxf6+ {[%clk 0:02:56]}  Bxf6 {[%clk 0:02:51]} 12. Nf3 {[%clk 0:02:56]}  O-O {[%clk 0:02:51]} 13. c3 {[%clk 0:02:52]}  Qb6 {[%clk 0:02:45]} 14. Qb3 {[%clk 0:02:50]}  Rfd8 {[%clk 0:02:43]} 15. Bf4 {[%clk 0:02:43]}  g5 {[%clk 0:02:25]} 16. Be5 {[%clk 0:02:16]}  Qxb3 {[%clk 0:02:19]} 17. axb3 {[%clk 0:02:15]}  Be7 {[%clk 0:02:20]} 18. b4 {[%clk 0:01:56]}  f6 {[%clk 0:01:54]} 19. Bc7 {[%clk 0:01:56]}  Rdc8 {[%clk 0:01:55]} 20. Rxe6 {[%clk 0:01:53]}  Bf8 {[%clk 0:01:55]} 21. Ba5 {[%clk 0:01:42]}  b6 {[%clk 0:01:56]} 22. Nd2 {[%clk 0:01:12]}  bxa5 {[%clk 0:01:56]} 23. Bxc6 {[%clk 0:01:09]}  Rxc6 {[%clk 0:01:56]} 24. Rxc6 {[%clk 0:01:09]}  axb4 {[%clk 0:01:57]} 25. Rc7 {[%clk 0:01:08]}  Nb6 {[%clk 0:01:52]} 26. Raxa7 {[%clk 0:01:07]}  Rxa7 {[%clk 0:01:53]} 27. Rxa7 {[%clk 0:01:08]}  Bd3 {[%clk 0:01:43]} 28. Rb7 {[%clk 0:01:05]}  Na4 {[%clk 0:01:44]} 29. cxb4 {[%clk 0:01:03]}  Nxb2 {[%clk 0:01:10]} 30. b5 {[%clk 0:01:03]}  Bb4 {[%clk 0:01:11]} 31. Nb3 {[%clk 0:01:01]}  Be4 {[%clk 0:00:58]} 32. Rc7 {[%clk 0:00:55]}  Bd6 {[%clk 0:00:49]} 33. Rc8+ {[%clk 0:00:48]}  Kf7 {[%clk 0:00:49]} 34. Nc5 {[%clk 0:00:45]}  Bf5 {[%clk 0:00:47]} 35. Rd8 {[%clk 0:00:37]}  Bc7 {[%clk 0:00:46]} 36. Ra8 {[%clk 0:00:35]}  Ke7 {[%clk 0:00:42]} 37. Ra7 {[%clk 0:00:24]}  Kd8 {[%clk 0:00:43]} 38. d5 {[%clk 0:00:18]}  Nc4 {[%clk 0:00:42]} 39. Na6 {[%clk 0:00:17]}  Bb6 {[%clk 0:00:38]} 40. Rf7 {[%clk 0:00:17]}  Bd4 {[%clk 0:00:38]} 41. Nb4 {[%clk 0:00:16]}  Ke8 {[%clk 0:00:37]} 42. Rc7 {[%clk 0:00:16]}  Nd6 {[%clk 0:00:36]} 43. Nc6 {[%clk 0:00:15]}  Bb6 {[%clk 0:00:35]} 44. Re7+ {[%clk 0:00:14]}  Kf8 {[%clk 0:00:36]} 45. h4 {[%clk 0:00:10]}  Bc5 {[%clk 0:00:21]} 46. Rc7 {[%clk 0:00:09]}  Nxb5 {[%clk 0:00:20]} 47. Rb7 {[%clk 0:00:09]}  Nd6 {[%clk 0:00:20]} 48. Rb2 {[%clk 0:00:10]}  Ne4 {[%clk 0:00:18]} 49. hxg5 {[%clk 0:00:10]}  hxg5 {[%clk 0:00:17]} 50. Kg2 {[%clk 0:00:10]}  g4 {[%clk 0:00:17]} 51. f3 {[%clk 0:00:10]}  Ng5 {[%clk 0:00:16]} 52. fxg4 {[%clk 0:00:10]}  Be4+ {[%clk 0:00:17]} 53. Kh2 {[%clk 0:00:09]}  Bxd5 {[%clk 0:00:18]} 54. Rb5 {[%clk 0:00:09]}  Bxc6 {[%clk 0:00:10]} 55. Rxc5 {[%clk 0:00:09]}  Bd7 {[%clk 0:00:11]} 56. Ra5 {[%clk 0:00:09]}  Bxg4 {[%clk 0:00:11]} 57. Ra7 {[%clk 0:00:09]}  Be6 {[%clk 0:00:11]} 58. Kg2 {[%clk 0:00:09]}  Bd5+ {[%clk 0:00:11]} 59. Kf2 {[%clk 0:00:09]}  Bf7 {[%clk 0:00:12]} 60. Ke3 {[%clk 0:00:10]}  Kg7 {[%clk 0:00:13]} 61. Kf4 {[%clk 0:00:10]}  Kg6 {[%clk 0:00:13]} 62. g4 {[%clk 0:00:10]}  Ne6+ {[%clk 0:00:13]} 63. Kg3 {[%clk 0:00:11]}  Ng5 {[%clk 0:00:14]} 64. Ra6 {[%clk 0:00:11]}  Be6 {[%clk 0:00:14]} 65. Kf4 {[%clk 0:00:11]}  Bc8 {[%clk 0:00:14]} 66. Kg3 {[%clk 0:00:11]}  Bxa6 {[%clk 0:00:14]} 0-1


[Site "https://www.chess.com"]

[Event "Titled Tuesday Blitz February 14 Early 2023"]
[White "Harsh Suresh"]
[Black "Ljukin, Sergei"]
[WhiteFideId "45018464"]
[BlackFideId "14102200"]
[WhiteElo "2298"]
[BlackElo "2362"]
[Result "1-0"]
[Round "04"]
[TimeControl "180+2"]
[Date "2023.02.15"]
[WhiteClock "0:00:08"]
[BlackClock "0:01:47"]

1. e4 {[%clk 0:03:00]}  e6 {[%clk 0:03:00]} 2. d3 {[%clk 0:03:00]}  d5 {[%clk 0:02:57]} 3. Nd2 {[%clk 0:03:00]}  Nf6 {[%clk 0:02:58]} 4. Ngf3 {[%clk 0:02:58]}  Be7 {[%clk 0:02:57]} 5. g3 {[%clk 0:02:56]}  O-O {[%clk 0:02:58]} 6. Bg2 {[%clk 0:02:56]}  c5 {[%clk 0:02:58]} 7. O-O {[%clk 0:02:56]}  Nc6 {[%clk 0:02:58]} 8. Re1 {[%clk 0:02:57]}  Qc7 {[%clk 0:02:58]} 9. e5 {[%clk 0:02:55]}  Nd7 {[%clk 0:02:58]} 10. Qe2 {[%clk 0:02:55]}  b5 {[%clk 0:02:58]} 11. Nf1 {[%clk 0:02:54]}  Qb6 {[%clk 0:02:59]} 12. h4 {[%clk 0:02:50]}  c4 {[%clk 0:02:59]} 13. h5 {[%clk 0:02:46]}  cxd3 {[%clk 0:02:57]} 14. cxd3 {[%clk 0:02:45]}  b4 {[%clk 0:02:57]} 15. N1h2 {[%clk 0:02:43]}  b3 {[%clk 0:02:57]} 16. a3 {[%clk 0:02:42]}  Ba6 {[%clk 0:02:55]} 17. h6 {[%clk 0:02:34]}  g6 {[%clk 0:02:55]} 18. Ng4 {[%clk 0:01:46]}  Nd4 {[%clk 0:02:50]} 19. Nxd4 {[%clk 0:01:24]}  Qxd4 {[%clk 0:02:50]} 20. Rd1 {[%clk 0:01:25]}  Rfc8 {[%clk 0:02:46]} 21. Be3 {[%clk 0:01:22]}  Rc2 {[%clk 0:02:35]} 22. Qxc2 {[%clk 0:01:00]}  bxc2 {[%clk 0:02:25]} 23. Bxd4 {[%clk 0:01:00]}  cxd1=Q+ {[%clk 0:02:25]} 24. Rxd1 {[%clk 0:01:01]}  Nc5 {[%clk 0:02:12]} 25. Bxc5 {[%clk 0:00:37]}  Bxc5 {[%clk 0:02:12]} 26. Nf6+ {[%clk 0:00:38]}  Kh8 {[%clk 0:02:10]} 27. d4 {[%clk 0:00:21]}  Bf8 {[%clk 0:02:02]} 28. Rc1 {[%clk 0:00:12]}  Bxh6 {[%clk 0:01:51]} 29. Rc6 {[%clk 0:00:12]}  Bc4 {[%clk 0:01:47]} 30. Rxc4 {[%clk 0:00:08]} 1-0


[Site "https://www.chess.com"]

[Event "Titled Tuesday Blitz February 14 Early 2023"]
[White "Barp, Alberto"]
[Black "Derjabin, Ilja"]
[WhiteFideId "872555"]
[BlackFideId "14104768"]
[WhiteElo "2432"]
[BlackElo "2333"]
[Result "1/2-1/2"]
[Round "04"]
[TimeControl "180+2"]
[Date "2023.02.15"]
[WhiteClock "0:00:08"]
[BlackClock "0:00:08"]

1. d4 {[%clk 0:03:00]}  Nf6 {[%clk 0:02:44]} 2. Nf3 {[%clk 0:02:58]}  d6 {[%clk 0:02:43]} 3. Bg5 {[%clk 0:02:56]}  Bf5 {[%clk 0:02:41]} 4. Nbd2 {[%clk 0:02:56]}  Ne4 {[%clk 0:02:31]} 5. Nxe4 {[%clk 0:02:53]}  Bxe4 {[%clk 0:02:32]} 6. e3 {[%clk 0:02:54]}  g6 {[%clk 0:02:28]} 7. Bd3 {[%clk 0:02:50]}  Bxd3 {[%clk 0:02:26]} 8. Qxd3 {[%clk 0:02:51]}  Nd7 {[%clk 0:02:18]} 9. O-O {[%clk 0:02:46]}  c6 {[%clk 0:02:17]} 10. e4 {[%clk 0:02:45]}  Bg7 {[%clk 0:02:17]} 11. Rfe1 {[%clk 0:02:45]}  O-O {[%clk 0:02:15]} 12. e5 {[%clk 0:02:39]}  dxe5 {[%clk 0:02:02]} 13. dxe5 {[%clk 0:02:40]}  h6 {[%clk 0:02:03]} 14. e6 {[%clk 0:02:04]}  hxg5 {[%clk 0:01:58]} 15. Nxg5 {[%clk 0:02:03]}  Nf6 {[%clk 0:01:23]} 16. exf7+ {[%clk 0:02:02]}  Rxf7 {[%clk 0:01:23]} 17. Qxg6 {[%clk 0:02:03]}  Qe8 {[%clk 0:01:08]} 18. Re6 {[%clk 0:01:55]}  Rf8 {[%clk 0:00:37]} 19. Qf5 {[%clk 0:01:54]}  Qh5 {[%clk 0:00:32]} 20. Rxe7 {[%clk 0:01:53]}  Ng4 {[%clk 0:00:23]} 21. Rxg7+ {[%clk 0:00:51]}  Kxg7 {[%clk 0:00:21]} 22. Ne6+ {[%clk 0:00:52]}  Kh6 {[%clk 0:00:20]} 23. Qxh5+ {[%clk 0:00:52]}  Kxh5 {[%clk 0:00:20]} 24. Nxf8 {[%clk 0:00:52]}  Rxf8 {[%clk 0:00:20]} 25. Re1 {[%clk 0:00:53]}  Rd8 {[%clk 0:00:15]} 26. f3 {[%clk 0:00:51]}  Nf6 {[%clk 0:00:15]} 27. Kf2 {[%clk 0:00:51]}  Rd2+ {[%clk 0:00:15]} 28. Re2 {[%clk 0:00:51]}  Rd1 {[%clk 0:00:14]} 29. g3 {[%clk 0:00:49]}  Kg5 {[%clk 0:00:13]} 30. h4+ {[%clk 0:00:48]}  Kf5 {[%clk 0:00:14]} 31. c4 {[%clk 0:00:47]}  b5 {[%clk 0:00:13]} 32. cxb5 {[%clk 0:00:47]}  cxb5 {[%clk 0:00:14]} 33. Rc2 {[%clk 0:00:42]}  a6 {[%clk 0:00:13]} 34. Ke3 {[%clk 0:00:40]}  Re1+ {[%clk 0:00:12]} 35. Re2 {[%clk 0:00:40]}  Rb1 {[%clk 0:00:12]} 36. Kd4 {[%clk 0:00:38]}  Rg1 {[%clk 0:00:10]} 37. g4+ {[%clk 0:00:36]}  Kf4 {[%clk 0:00:10]} 38. g5 {[%clk 0:00:36]}  Nh5 {[%clk 0:00:09]} 39. Re6 {[%clk 0:00:33]}  Ng3 {[%clk 0:00:07]} 40. Rxa6 {[%clk 0:00:29]}  Nf5+ {[%clk 0:00:07]} 41. Kc5 {[%clk 0:00:29]}  Rg2 {[%clk 0:00:06]} 42. b4 {[%clk 0:00:29]}  Nxh4 {[%clk 0:00:06]} 43. Kxb5 {[%clk 0:00:25]}  Nxf3 {[%clk 0:00:06]} 44. Rf6+ {[%clk 0:00:24]}  Ke4 {[%clk 0:00:06]} 45. g6 {[%clk 0:00:23]}  Ne5 {[%clk 0:00:06]} 46. a4 {[%clk 0:00:22]}  Nxg6 {[%clk 0:00:06]} 47. a5 {[%clk 0:00:22]}  Ne5 {[%clk 0:00:07]} 48. a6 {[%clk 0:00:22]}  Ra2 {[%clk 0:00:05]} 49. Rd6 {[%clk 0:00:20]}  Nf3 {[%clk 0:00:05]} 50. Kb6 {[%clk 0:00:20]}  Nd4 {[%clk 0:00:05]} 51. b5 {[%clk 0:00:19]}  Ke5 {[%clk 0:00:05]} 52. Rd8 {[%clk 0:00:18]}  Nxb5 {[%clk 0:00:05]} 53. Kxb5 {[%clk 0:00:18]}  Rb2+ {[%clk 0:00:06]} 54. Kc6 {[%clk 0:00:18]}  Rc2+ {[%clk 0:00:06]} 55. Kb7 {[%clk 0:00:18]}  Rb2+ {[%clk 0:00:07]} 56. Ka8 {[%clk 0:00:18]}  Ke6 {[%clk 0:00:07]} 57. Rb8 {[%clk 0:00:18]}  Ra2 {[%clk 0:00:07]} 58. Kb7 {[%clk 0:00:18]}  Rb2+ {[%clk 0:00:05]} 59. Kc7 {[%clk 0:00:16]}  Rc2+ {[%clk 0:00:06]} 60. Kd8 {[%clk 0:00:14]}  Rd2+ {[%clk 0:00:06]} 61. Ke8 {[%clk 0:00:13]}  Ra2 {[%clk 0:00:05]} 62. Rb6+ {[%clk 0:00:13]}  Kd5 {[%clk 0:00:06]} 63. Kd8 {[%clk 0:00:13]}  Kc5 {[%clk 0:00:04]} 64. Kc7 {[%clk 0:00:13]}  Rh2 {[%clk 0:00:05]} 65. Rc6+ {[%clk 0:00:10]}  Kb5 {[%clk 0:00:04]} 66. Rb6+ {[%clk 0:00:05]}  Kc5 {[%clk 0:00:04]} 67. Rf6 {[%clk 0:00:03]}  Rh7+ {[%clk 0:00:04]} 68. Kb8 {[%clk 0:00:03]}  Rh8+ {[%clk 0:00:04]} 69. Kb7 {[%clk 0:00:03]}  Rh7+ {[%clk 0:00:05]} 70. Kc8 {[%clk 0:00:04]}  Rh8+ {[%clk 0:00:05]} 71. Kd7 {[%clk 0:00:04]}  Rh7+ {[%clk 0:00:06]} 72. Ke8 {[%clk 0:00:05]}  Rh8+ {[%clk 0:00:06]} 73. Kf7 {[%clk 0:00:05]}  Ra8 {[%clk 0:00:06]} 74. Ke7 {[%clk 0:00:05]}  Kb5 {[%clk 0:00:06]} 75. Kd7 {[%clk 0:00:04]}  Ra7+ {[%clk 0:00:06]} 76. Kc8 {[%clk 0:00:04]}  Rxa6 {[%clk 0:00:07]} 77. Rf5+ {[%clk 0:00:04]}  Kb4 {[%clk 0:00:07]} 78. Rf4+ {[%clk 0:00:04]}  Kb3 {[%clk 0:00:08]} 79. Rf7 {[%clk 0:00:04]}  Kc3 {[%clk 0:00:08]} 80. Rc7+ {[%clk 0:00:05]}  Kd4 {[%clk 0:00:07]} 81. Kb7 {[%clk 0:00:06]}  Re6 {[%clk 0:00:07]} 82. Rd7+ {[%clk 0:00:06]}  Ke5 {[%clk 0:00:07]} 83. Kc7 {[%clk 0:00:07]}  Kf6 {[%clk 0:00:08]} 84. Rd6 {[%clk 0:00:07]}  Rxd6 {[%clk 0:00:08]} 85. Kxd6 {[%clk 0:00:08]} 1/2-1/2


[Site "https://www.chess.com"]